[Event "56th Biel Festival MTO 2023"]
[White "Wang,Chuqiao"]
[Black "Schnell,Simon"]
[Site "Biel"]
[Round "2.49"]
[Annotator "TA"]
[Result "1-0"]
[Date "2023.07.19"]
[WhiteElo "2161"]
[BlackElo "2029"]
[PlyCount "78"]
[TimeControl "60"]

{[%evp 14,78,11,8,10,-40,-18,-40,-9,-7,-1,-15,0,0,0,-94,9,22,16,13,22,0,24,0,38,34,70,50,60,0,75,62,71,27,52,38,56,52,55,63,65,52,49,52,78,79,115,113,166,160,180,160,184,181,231,211,262,275,469,279,306,290,296,285,292,285,343]} 1. d4 {[%emt 0:0:0]} Nf6 {[%emt 0:0:0]} 2. c4 {[%emt 0:0:0]} g6 {[%emt 0:0:0]} 3. Nc3 {[%emt 0:0:0]} d5 {[%emt 0:0:0]} 4. cxd5 {[%emt 0:0:0]} Nxd5 {[%emt 0:0:0]} 5. Bd2 {[%emt 0:0:0]} Bg7 {[%emt 0:0:0]} 6. e4 {[%emt 0:0:0]} Nb6 {[%emt 0:0:0]} 7. Be3 {[%emt 0:0:0]} O-O {[%emt 0:0:0]} 8. Nf3 {[%emt 0:0:0]} Bg4 {[%emt 0:0:0] D90: Grünfeld: 4 Nf3 Bg7 sidelines.} 9. Qd3 {[%emt 0:0:0]} (9. Be2 $11 )Nc6 $15 {[%emt 0:1:15][%cal Bb8c6,Bc6b4,Bb4d5,Bd5f4][%mdl 32]} 10. Rd1 {[%emt 0:0:49] [#]} f5 $146 {[%emt 0:8:41] Black is slightly better.} ({Predecessor:} 10... Qd6 11. a3 Rad8 12. Ne2 Bxf3 13. gxf3 Ne5 14. dxe5 Qxd3 15. Rxd3 Rxd3 {0-1 Pinault,R (1810)-Schoucair,H (2105) Pic d'Anie op 2nd 2005 (4.7)} )11. exf5 $1 {[%emt 0:3:30]} Bxf5 {[%emt 0:1:48]} 12. Qd2 {[%emt 0:3:6]} Nb4 {[%emt 0:12:58]} 13. Rc1 {[%emt 0:0:23] Dodges Nc2+} c6 {[%emt 0:11:24]} 14. Bh6 {[%emt 0:3:3]} (14. Be2 $11 )Qd6 {[%emt 0:7:44]} (14... e5 $17 {Strongly threatening ...Bxh6.} 15. Bxg7 (15. Nxe5 $2 {loses.} Bxh6 {[%mdl 64] Deflection} 16. Qxh6 Qxd4 $19 )Kxg7 16. Nxe5 c5 )15. Bxg7 $11 {[%emt 0:1:13]} Kxg7 {[%emt 0:0:9]} 16. Be2 {[%emt 0:2:5]} Rad8 {[%emt 0:8:47][%cal Oe7e5]} 17. O-O {[%emt 0:2:30]} (17. a3 $5 {[%cal Ra3b4]} N4d5 18. O-O $11 )N4d5 {[%emt 0:1:17]} (17... e5 $5 {[%cal Re5d4]} 18. a3 exd4 19. axb4 dxc3 20. Qxd6 Rxd6 21. bxc3 Re8 $11 )18. Bd3 {[%emt 0:2:27]} Bxd3 {[%emt 0:8:0]} (18... Bg4 $5 {[%cal Rg4f3]} )19. Qxd3 {[%emt 0:2:50]} Qf6 {[%emt 0:9:29]} 20. Rfe1 {[%emt 0:2:0]} Nf4 {[%emt 0:0:30]} 21. Qe3 {[%emt 0:0:30]} (21. Qe4 $14 )Nbd5 {[%emt 0:3:29]} (21... Qf5 $11 )22. Nxd5 $16 {[%emt 0:3:13]} Nxd5 {[%emt 0:12:44]} 23. Qe4 {[%emt 0:0:30]} (23. Qb3 $5 {[%cal Rb3b7]} )Rde8 {[%emt 0:0:30]} 24. Rc2 {[%emt 0:0:30]} Nf4 {[%emt 0:0:30]} 25. Rc5 {[%emt 0:9:58][%cal Bc2c5,Bc5a5,Ba5a3,Ba3b3,Bb3h3][%mdl 32]} (25. Ne5 {is interesting.} Qe6 26. g3 Nh3+ 27. Kg2 )Nd5 {[%emt 0:2:43]} 26. Ra5 {[%emt 0:3:52]} a6 {[%emt 0:5:14]} 27. Ra3 {[%emt 0:0:30]} Qf5 {[%emt 0:0:30]} 28. Rb3 {[%emt 0:4:30]} Rb8 {[%emt 0:5:17]} 29. Qxf5 {[%emt 0:0:30]} gxf5 {[%emt 0:0:30]} 30. Ng5 {[%emt 0:0:30] White is more active.} Rg8 {[%emt 0:0:30]} (30... Kg8 $16 {is a better defense.} )31. Ne6+ $18 {[%emt 0:1:6]} Kf7 {[%emt 0:0:54]} 32. Rh3 {[%emt 0:2:31]} Nf6 {[%emt 0:1:3]} 33. Rf3 {[%emt 0:0:30]} Rg4 {[%emt 0:0:30]} (33... b6 {might work better.} 34. Rxf5 Rb7 )34. Rxf5 {[%emt 0:0:30]} Kg6 {[%emt 0:0:30]} 35. Rfe5 {[%emt 0:2:56]} Nd5 $2 {[%emt 0:0:34]} (35... Kf7 36. h3 Rgg8 )36. g3 {[%emt 0:0:30]} (36. f3 $142 Rh4 37. Rg5+ Kf6 38. g4 )Kf7 {[%emt 0:0:30] White has a decisive advantage.} 37. h3 {[%emt 0:0:30]} Rg6 {[%emt 0:0:24] [#]} 38. Nc7 $1 {[%emt 0:52:28][%mdl 576] Decoy} e6 {[%emt 0:1:6]} 39. Nxe6 {[%emt 0:0:30]} Nb4 {[%emt 0:0:30] Weighted Error Value: White=0.20 (precise) /Black=0.32} 1-0

[Event "56th Biel Festival MTO 2023"]
[White "Bu,Xiangzhi"]
[Black "Chasin,Nico"]
[Site "Biel"]
[Round "3.1"]
[Annotator "RC"]
[Result "1/2-1/2"]
[Date "2023.07.19"]
[WhiteElo "2676"]
[BlackElo "2455"]
[PlyCount "81"]
[TimeControl "60"]

1. c4 {[%emt 0:0:0]} Nf6 {[%emt 0:0:0]} 2. Nc3 {[%emt 0:0:0]} e5 {[%emt 0:0:0]} 3. g3 {[%emt 0:0:0]} d5 {[%emt 0:0:0]} 4. cxd5 {[%emt 0:0:0]} Nxd5 {[%emt 0:0:0]} 5. Bg2 {[%emt 0:0:0]} Nb6 {[%emt 0:0:0]} 6. Nf3 {[%emt 0:0:0]} Nc6 {[%emt 0:0:0]} 7. O-O {[%emt 0:0:0]} Be7 {[%emt 0:0:0]} 8. Rb1 {[%emt 0:0:0]} a5 {[%emt 0:0:0]} 9. d3 {[%emt 0:0:0]} Be6 {[%emt 0:0:10]} 10. Be3 {[%emt 0:0:0]} Nd5 {[%emt 0:1:47]} 11. Nxd5 {[%emt 0:0:0]} Bxd5 {[%emt 0:0:33]} 12. Qa4 {[%emt 0:0:0]} O-O {[%emt 0:1:1]} 13. Rbc1 {[%emt 0:0:0]} Re8 {[%emt 0:29:13]} 14. a3 {[%emt 0:0:0]} Bf8 {[%emt 0:3:12]} 15. Rc3 {[%emt 0:0:0]} Nb4 {[%emt 0:16:24]} 16. Bg5 {[%emt 0:10:2]} f6 {[%emt 0:2:32]} 17. e4 {[%emt 0:2:22]} Be6 {[%emt 0:2:7]} 18. Be3 {[%emt 0:1:0]} Na2 {[%emt 0:0:44]} 19. Rc2 {[%emt 0:28:58]} Qxd3 {[%emt 0:0:38]} 20. Rd2 {[%emt 0:8:14]} Qb3 {[%emt 0:2:57]} 21. Qxb3 {[%emt 0:0:28]} Bxb3 {[%emt 0:0:2]} 22. Rd7 {[%emt 0:3:22]} b5 {[%emt 0:11:26]} 23. Bh3 {[%emt 0:7:37]} b4 {[%emt 0:7:27]} 24. Nd2 {[%emt 0:1:20]} bxa3 {[%emt 0:0:37]} 25. Nxb3 {[%emt 0:3:16]} axb2 {[%emt 0:0:12]} 26. Rb1 {[%emt 0:0:19]} a4 {[%emt 0:0:45]} 27. Rxb2 {[%emt 0:0:50]} axb3 {[%emt 0:0:9]} 28. Rxc7 {[%emt 0:6:21]} Rab8 {[%emt 0:1:43]} 29. Bf1 {[%emt 0:3:6]} Kh8 {[%emt 0:0:6]} 30. Bc4 {[%emt 0:11:46]} Nc3 {[%emt 0:0:6]} 31. Rxb3 {[%emt 0:0:7]} Rxb3 {[%emt 0:0:5]} 32. Bxb3 {[%emt 0:0:5]} Nxe4 {[%emt 0:0:3]} 33. h4 {[%emt 0:0:28]} Nd6 {[%emt 0:0:57]} 34. h5 {[%emt 0:0:52]} Nf5 {[%emt 0:1:4]} 35. Bc2 {[%emt 0:0:54]} Nxe3 {[%emt 0:0:56]} 36. fxe3 {[%emt 0:0:2]} Bd6 {[%emt 0:1:41]} 37. Rc6 {[%emt 0:0:13]} Bf8 {[%emt 0:0:8]} 38. Be4 {[%emt 0:0:23]} Rd8 {[%emt 0:0:32]} 39. Kf2 {[%emt 0:0:10]} f5 {[%emt 0:2:28]} 40. Bxf5 {[%emt 0:0:9]} Rd6 {[%emt 0:0:4]} 41. Rxd6 {[%emt 0:33:41]} 1/2-1/2

[Event "56th Biel Festival MTO 2023"]
[White "Aryan Chopra"]
[Black "Huang,Renjie"]
[Site "Biel"]
[Round "3.2"]
[Annotator "RC"]
[Result "1-0"]
[Date "2023.07.19"]
[WhiteElo "2626"]
[BlackElo "2445"]
[PlyCount "87"]
[TimeControl "60"]

1. e4 {[%emt 0:0:0]} c5 {[%emt 0:0:0]} 2. Nf3 {[%emt 0:0:0]} e6 {[%emt 0:0:0]} 3. d4 {[%emt 0:0:0]} cxd4 {[%emt 0:0:0]} 4. Nxd4 {[%emt 0:0:0]} Nf6 {[%emt 0:0:0]} 5. Nc3 {[%emt 0:0:0]} Nc6 {[%emt 0:0:0]} 6. Nxc6 {[%emt 0:0:0]} bxc6 {[%emt 0:0:0]} 7. e5 {[%emt 0:0:0]} Nd5 {[%emt 0:0:0]} 8. Ne4 {[%emt 0:0:0]} Bb7 {[%emt 0:0:0]} 9. Bd3 {[%emt 0:0:0]} Qc7 {[%emt 0:0:0]} 10. f4 {[%emt 0:0:0]} c5 {[%emt 0:0:0]} 11. c4 {[%emt 0:0:0]} Nb4 {[%emt 0:0:0]} 12. Bb1 {[%emt 0:0:0]} Rd8 {[%emt 0:0:38]} 13. Nd6+ {[%emt 0:2:43]} Bxd6 {[%emt 0:0:19]} 14. Qxd6 {[%emt 0:0:10]} Qc6 {[%emt 0:1:16]} 15. Qxc6 {[%emt 0:4:51]} Nxc6 {[%emt 0:1:42]} 16. Be3 {[%emt 0:0:6]} Nd4 {[%emt 0:7:21]} 17. O-O {[%emt 0:18:58]} d6 {[%emt 0:3:41]} 18. Bxd4 {[%emt 0:2:7]} cxd4 {[%emt 0:0:4]} 19. exd6 {[%emt 0:4:15]} Rxd6 {[%emt 0:2:33]} 20. c5 {[%emt 0:0:4]} Rd8 {[%emt 0:5:30]} 21. Bd3 {[%emt 0:0:41]} a5 {[%emt 0:9:31]} 22. a3 {[%emt 0:3:55]} Kd7 {[%emt 0:1:30]} 23. b4 {[%emt 0:3:44]} axb4 {[%emt 0:0:9]} 24. axb4 {[%emt 0:0:7]} Ra8 {[%emt 0:0:17]} 25. Rfd1 {[%emt 0:16:51]} Kc7 {[%emt 0:2:44]} 26. Bc4 {[%emt 0:0:56]} Rhd8 {[%emt 0:8:20]} 27. Kf2 {[%emt 0:1:38]} Rxa1 {[%emt 0:6:22]} 28. Rxa1 {[%emt 0:0:2]} d3 {[%emt 0:0:11]} 29. Ke3 {[%emt 0:0:41]} d2 {[%emt 0:0:4]} 30. Rd1 {[%emt 0:1:3]} Bxg2 {[%emt 0:0:54]} 31. Rxd2 {[%emt 0:7:37]} Rxd2 {[%emt 0:1:44]} 32. Kxd2 {[%emt 0:0:4]} Kc6 {[%emt 0:8:47]} 33. Kc3 {[%emt 0:0:40]} Bd5 {[%emt 0:1:20]} 34. Be2 {[%emt 0:19:2]} f6 {[%emt 0:9:26]} 35. Kd4 {[%emt 0:0:9]} g6 {[%emt 0:0:9]} 36. b5+ {[%emt 0:2:29]} Kc7 {[%emt 0:0:31]} 37. Bd3 {[%emt 0:2:49]} Bf3 {[%emt 0:2:41]} 38. Bc4 {[%emt 0:6:52]} Kd7 {[%emt 0:0:8]} 39. b6 {[%emt 0:2:44]} Bc6 {[%emt 0:0:40]} 40. Kc3 {[%emt 0:0:49]} e5 {[%emt 0:4:34]} 41. fxe5 {[%emt 0:32:2]} fxe5 {[%emt 0:30:1]} 42. Kb4 {[%emt 0:0:34]} e4 {[%emt 0:2:30]} 43. Kc3 {[%emt 0:0:51]} g5 {[%emt 0:0:36]} 44. Be2 {[%emt 0:0:0]} 1-0

[Event "56th Biel Festival MTO 2023"]
[White "Materia,Marco"]
[Black "Quesada Perez,Luis Ernesto"]
[Site "Biel"]
[Round "3.3"]
[Annotator "RC"]
[Result "1/2-1/2"]
[Date "2023.07.19"]
[WhiteElo "2436"]
[BlackElo "2553"]
[PlyCount "95"]
[TimeControl "60"]

1. d4 {[%emt 0:0:0]} Nf6 {[%emt 0:0:0]} 2. c4 {[%emt 0:0:0]} g6 {[%emt 0:0:0]} 3. Nc3 {[%emt 0:0:0]} d5 {[%emt 0:0:0]} 4. cxd5 {[%emt 0:0:0]} Nxd5 {[%emt 0:0:0]} 5. e4 {[%emt 0:0:0]} Nxc3 {[%emt 0:0:0]} 6. bxc3 {[%emt 0:0:0]} Bg7 {[%emt 0:0:0]} 7. Bc4 {[%emt 0:0:0]} c5 {[%emt 0:0:0]} 8. Ne2 {[%emt 0:0:0]} Nc6 {[%emt 0:0:0]} 9. Be3 {[%emt 0:0:0]} O-O {[%emt 0:0:0]} 10. Rc1 {[%emt 0:0:0]} cxd4 {[%emt 0:0:0]} 11. cxd4 {[%emt 0:0:0]} Qa5+ {[%emt 0:0:0]} 12. Rc3 {[%emt 0:0:0]} Bg4 {[%emt 0:3:7]} 13. f3 {[%emt 0:0:0]} Rad8 {[%emt 0:3:50]} 14. Qd2 {[%emt 0:0:0]} Be6 {[%emt 0:1:33]} 15. Bxe6 {[%emt 0:0:0]} fxe6 {[%emt 0:0:1]} 16. Rd3 {[%emt 0:0:0]} Qa6 {[%emt 0:0:42]} 17. O-O {[%emt 0:0:0]} Ne5 {[%emt 0:1:33]} 18. Rb3 {[%emt 0:0:0]} Nc4 {[%emt 0:0:13]} 19. Qd3 {[%emt 0:0:0]} Nxe3 {[%emt 0:3:49]} 20. Qxe3 {[%emt 0:0:0]} Rc8 {[%emt 0:0:15]} 21. Nc3 {[%emt 0:11:59]} e5 {[%emt 0:7:14]} 22. d5 {[%emt 0:10:50]} Rc4 {[%emt 0:1:53]} 23. Rfb1 {[%emt 0:6:19]} Rfc8 {[%emt 0:5:8]} 24. h3 {[%emt 0:8:32]} b6 {[%emt 0:9:6]} 25. Kh2 {[%emt 0:22:13]} Qa5 {[%emt 0:26:16]} 26. Nb5 {[%emt 0:14:10]} Qxa2 {[%emt 0:5:3]} 27. R1b2 {[%emt 0:11:2]} Qa1 {[%emt 0:0:15]} 28. d6 {[%emt 0:3:41]} Rc1 {[%emt 0:6:19]} 29. dxe7 {[%emt 0:7:30]} Re8 {[%emt 0:10:14]} 30. Rd2 {[%emt 0:5:19]} Bf6 {[%emt 0:1:9]} 31. Ra3 {[%emt 0:0:57]} Rh1+ {[%emt 0:6:8]} 32. Kg3 {[%emt 0:0:30]} Qc1 {[%emt 0:0:29]} 33. Rc3 {[%emt 0:0:32]} Qe1+ {[%emt 0:5:16]} 34. Qxe1 {[%emt 0:0:1]} Rxe1 {[%emt 0:0:5]} 35. Nc7 {[%emt 0:2:44]} Rxe7 {[%emt 0:0:2]} 36. Nd5 {[%emt 0:0:2]} Rf7 {[%emt 0:0:19]} 37. Nxf6+ {[%emt 0:0:9]} Rxf6 {[%emt 0:0:2]} 38. Rd5 {[%emt 0:0:33]} Rf7 {[%emt 0:1:20]} 39. Rxe5 {[%emt 0:0:9]} Rb1 {[%emt 0:0:47]} 40. h4 {[%emt 0:2:10]} a5 {[%emt 0:0:48]} 41. h5 {[%emt 0:0:0]} Kg7 {[%emt 0:0:0]} 42. hxg6 {[%emt 0:6:30]} hxg6 {[%emt 0:0:0]} 43. Re6 {[%emt 0:6:40]} a4 {[%emt 0:0:0]} 44. Rcc6 {[%emt 0:0:16]} a3 {[%emt 0:0:0]} 45. Rxg6+ {[%emt 0:0:6]} Kh7 {[%emt 0:0:0]} 46. Rh6+ {[%emt 0:0:9]} Kg8 {[%emt 0:0:0]} 47. Rhg6+ {[%emt 0:9:14]} Kh7 {[%emt 0:0:0]} 48. Rh6+ {[%emt 0:0:4]} 1/2-1/2

[Event "56th Biel Festival MTO 2023"]
[White "Liu,Yan"]
[Black "Licznerski,Lukasz"]
[Site "Biel"]
[Round "3.4"]
[Annotator "RC"]
[Result "1-0"]
[Date "2023.07.19"]
[WhiteElo "2542"]
[BlackElo "2430"]
[PlyCount "125"]
[TimeControl "60"]

1. c4 {[%emt 0:0:0]} e5 {[%emt 0:0:0]} 2. g3 {[%emt 0:0:0]} Nf6 {[%emt 0:0:0]} 3. Bg2 {[%emt 0:0:0]} d5 {[%emt 0:0:0]} 4. cxd5 {[%emt 0:0:0]} Nxd5 {[%emt 0:0:0]} 5. Nf3 {[%emt 0:0:0]} Nc6 {[%emt 0:0:0]} 6. O-O {[%emt 0:0:0]} Nb6 {[%emt 0:0:0]} 7. b3 {[%emt 0:0:0]} Be7 {[%emt 0:0:0]} 8. Bb2 {[%emt 0:0:0]} f6 {[%emt 0:0:0]} 9. Nc3 {[%emt 0:0:0]} Be6 {[%emt 0:5:21]} 10. Qc1 {[%emt 0:9:32]} Qd7 {[%emt 0:4:49]} 11. Rd1 {[%emt 0:2:46]} Bh3 {[%emt 0:22:44]} 12. Bxh3 {[%emt 0:10:36]} Qxh3 {[%emt 0:2:50]} 13. d4 {[%emt 0:0:8]} O-O-O {[%emt 0:24:6]} 14. dxe5 {[%emt 0:26:49]} fxe5 {[%emt 0:0:41]} 15. Qe3 {[%emt 0:0:23]} Qf5 {[%emt 0:1:10]} 16. Qe4 {[%emt 0:1:2]} g6 {[%emt 0:1:29]} 17. Qxf5+ {[%emt 0:2:51]} gxf5 {[%emt 0:1:29]} 18. e4 {[%emt 0:0:5]} Rdf8 {[%emt 0:3:20]} 19. Nd5 {[%emt 0:12:55]} Bd6 {[%emt 0:0:38]} 20. Nd2 {[%emt 0:13:5]} Rhg8 {[%emt 0:12:0]} 21. Ne3 {[%emt 0:1:14]} f4 {[%emt 0:14:54]} 22. Nf5 {[%emt 0:0:10]} Ne7 {[%emt 0:0:21]} 23. Nxe7+ {[%emt 0:3:28]} Bxe7 {[%emt 0:0:1]} 24. Kg2 {[%emt 0:1:11]} Bd6 {[%emt 0:0:21]} 25. Nf3 {[%emt 0:0:30]} Nd7 {[%emt 0:1:2]} 26. Rac1 {[%emt 0:1:34]} Rf6 {[%emt 0:0:1]} 27. Nh4 {[%emt 0:0:31]} f3+ {[%emt 0:1:49]} 28. Kf1 {[%emt 0:5:2]} Rg4 {[%emt 0:0:20]} 29. Nf5 {[%emt 0:1:37]} Kd8 {[%emt 0:0:14]} 30. Re1 {[%emt 0:1:57]} Bb4 {[%emt 0:3:41]} 31. Bc3 {[%emt 0:1:3]} a5 {[%emt 0:0:1]} 32. h3 {[%emt 0:0:31]} Rgg6 {[%emt 0:0:3]} 33. Re3 {[%emt 0:1:48]} Rc6 {[%emt 0:1:12]} 34. Rxf3 {[%emt 0:0:6]} Rc5 {[%emt 0:0:6]} 35. Rd3 {[%emt 0:2:5]} Bxc3 {[%emt 0:0:33]} 36. Rcxc3 {[%emt 0:0:33]} Rxc3 {[%emt 0:0:5]} 37. Rxc3 {[%emt 0:0:3]} a4 {[%emt 0:0:4]} 38. f3 {[%emt 0:2:14]} axb3 {[%emt 0:0:59]} 39. Rxb3 {[%emt 0:1:5]} Nc5 {[%emt 0:0:31]} 40. Rb5 {[%emt 0:2:12]} b6 {[%emt 0:2:8]} 41. h4 {[%emt 0:30:49]} Kd7 {[%emt 0:30:49]} 42. g4 {[%emt 0:0:0]} Rg8 {[%emt 0:0:0]} 43. Rb2 {[%emt 0:0:0]} Ke6 {[%emt 0:0:0]} 44. Ne3 {[%emt 0:0:0]} Ra8 {[%emt 0:0:0]} 45. Nd5 {[%emt 0:0:0]} Ra3 {[%emt 0:0:0]} 46. Nxc7+ {[%emt 0:0:0]} Kd7 {[%emt 0:0:0]} 47. Nd5 {[%emt 0:0:0]} Rxf3+ {[%emt 0:0:0]} 48. Kg2 {[%emt 0:0:0]} Ra3 {[%emt 0:0:0]} 49. Nf6+ {[%emt 0:0:0]} Ke7 {[%emt 0:0:0]} 50. g5 {[%emt 0:0:0]} h6 {[%emt 0:0:0]} 51. Ng8+ {[%emt 0:0:0]} Kf7 {[%emt 0:0:0]} 52. Nxh6+ {[%emt 0:0:0]} Kg6 {[%emt 0:0:0]} 53. Ng4 {[%emt 0:0:0]} Nxe4 {[%emt 0:0:0]} 54. Nf2 {[%emt 0:0:0]} Nxf2 {[%emt 0:0:7]} 55. Rxb6+ {[%emt 0:0:0]} Kf5 {[%emt 0:0:35]} 56. Rf6+ {[%emt 0:1:28]} Kg4 {[%emt 0:2:50]} 57. Rxf2 {[%emt 0:0:5]} Kh5 {[%emt 0:5:0]} 58. Kg1 {[%emt 0:2:45]} e4 {[%emt 0:0:34]} 59. Rg2 {[%emt 0:0:19]} e3 {[%emt 0:0:30]} 60. g6 {[%emt 0:0:25]} e2 {[%emt 0:0:31]} 61. Kf2 {[%emt 0:0:4]} Rxa2 {[%emt 0:0:30]} 62. Rg5+ {[%emt 0:0:5]} Kxh4 {[%emt 0:0:0]} 63. g7 {[%emt 0:0:0]} 1-0

[Event "56th Biel Festival MTO 2023"]
[White "Harikrishnan.A.Ra"]
[Black "Pranav Anand"]
[Site "Biel"]
[Round "3.5"]
[Annotator "RC"]
[Result "1/2-1/2"]
[Date "2023.07.19"]
[WhiteElo "2406"]
[BlackElo "2510"]
[PlyCount "132"]
[TimeControl "60"]

1. d4 {[%emt 0:0:0]} Nf6 {[%emt 0:0:0]} 2. Nf3 {[%emt 0:0:0]} d5 {[%emt 0:0:0]} 3. c4 {[%emt 0:0:0]} e6 {[%emt 0:0:0]} 4. g3 {[%emt 0:0:0]} Bb4+ {[%emt 0:0:0]} 5. Bd2 {[%emt 0:0:0]} Be7 {[%emt 0:0:0]} 6. Bg2 {[%emt 0:0:0]} Nbd7 {[%emt 0:0:0]} 7. Qc2 {[%emt 0:0:0]} c6 {[%emt 0:0:0]} 8. O-O {[%emt 0:0:0]} Ne4 {[%emt 0:0:0]} 9. Be3 {[%emt 0:7:35]} O-O {[%emt 0:0:0]} 10. Nbd2 {[%emt 0:9:57]} f5 {[%emt 0:0:38]} 11. Ne1 {[%emt 0:5:16]} Nd6 {[%emt 0:13:25]} 12. Nd3 {[%emt 0:1:46]} g5 {[%emt 0:0:10]} 13. b3 {[%emt 0:7:46]} Nf7 {[%emt 0:1:28]} 14. Nf3 {[%emt 0:4:26]} Bf6 {[%emt 0:0:50]} 15. b4 {[%emt 0:12:16]} Nb6 {[%emt 0:9:54]} 16. Nb2 {[%emt 0:4:57]} g4 {[%emt 0:19:13]} 17. Nd2 {[%emt 0:0:56]} dxc4 {[%emt 0:0:7]} 18. Ndxc4 {[%emt 0:4:49]} Nd5 {[%emt 0:0:35]} 19. Nd3 {[%emt 0:0:38]} b6 {[%emt 0:5:56]} 20. Rad1 {[%emt 0:4:56]} Qe7 {[%emt 0:2:17]} 21. a3 {[%emt 0:4:17]} Ba6 {[%emt 0:9:58]} 22. Nce5 {[%emt 0:10:26]} Bxe5 {[%emt 0:13:4]} 23. Nxe5 {[%emt 0:0:40]} Nxe3 {[%emt 0:4:37]} 24. fxe3 {[%emt 0:1:2]} Nxe5 {[%emt 0:0:7]} 25. dxe5 {[%emt 0:0:4]} Qg7 {[%emt 0:4:21]} 26. Qb2 {[%emt 0:2:58]} Rad8 {[%emt 0:2:33]} 27. Kf2 {[%emt 0:8:3]} Bb5 {[%emt 0:3:34]} 28. a4 {[%emt 0:5:32]} Bxa4 {[%emt 0:0:20]} 29. Rxd8 {[%emt 0:0:7]} Rxd8 {[%emt 0:0:13]} 30. Qa2 {[%emt 0:0:5]} Bb5 {[%emt 0:0:31]} 31. Qxe6+ {[%emt 0:0:3]} Qf7 {[%emt 0:0:21]} 32. Qh6 {[%emt 0:2:38]} Qg6 {[%emt 0:0:49]} 33. Qf4 {[%emt 0:1:21]} h6 {[%emt 0:4:51]} 34. Ra1 {[%emt 0:0:59]} a6 {[%emt 0:0:25]} 35. Rc1 {[%emt 0:1:11]} Qe6 {[%emt 0:1:32]} 36. e4 {[%emt 0:2:1]} fxe4 {[%emt 0:0:53]} 37. Qxe4 {[%emt 0:0:46]} Rd5 {[%emt 0:0:46]} 38. Qf4 {[%emt 0:0:53]} Rxe5 {[%emt 0:0:14]} 39. e4 {[%emt 0:0:24]} h5 {[%emt 0:3:59]} 40. Rd1 {[%emt 0:0:53]} Qe7 {[%emt 0:1:12]} 41. Kg1 {[%emt 0:0:0]} a5 {[%emt 0:0:0]} 42. Qh6 {[%emt 0:0:0]} Qg5 {[%emt 0:0:0]} 43. Qd6 {[%emt 0:0:0]} axb4 {[%emt 0:0:0]} 44. Qxb4 {[%emt 0:0:0]} Re7 {[%emt 0:5:1]} 45. Qd4 {[%emt 0:2:35]} Qc5 {[%emt 0:3:0]} 46. Qxc5 {[%emt 0:0:8]} bxc5 {[%emt 0:0:4]} 47. Rc1 {[%emt 0:0:9]} c4 {[%emt 0:10:1]} 48. Kf2 {[%emt 0:0:17]} Ra7 {[%emt 0:0:3]} 49. Bf1 {[%emt 0:5:28]} Ra4 {[%emt 0:8:58]} 50. Ke3 {[%emt 0:1:27]} Kf7 {[%emt 0:0:16]} 51. Kf4 {[%emt 0:5:53]} Kf6 {[%emt 0:1:19]} 52. Rc2 {[%emt 0:6:57]} Ra3 {[%emt 0:0:48]} 53. e5+ {[%emt 0:1:58]} Kg6 {[%emt 0:0:33]} 54. Bg2 {[%emt 0:2:13]} c3 {[%emt 0:0:11]} 55. Be4+ {[%emt 0:0:55]} Kf7 {[%emt 0:0:35]} 56. Rc1 {[%emt 0:3:11]} Ba4 {[%emt 0:4:5]} 57. Bf5 {[%emt 0:2:36]} Ke7 {[%emt 0:0:54]} 58. Ke4 {[%emt 0:1:15]} c2 {[%emt 0:3:58]} 59. Kd4 {[%emt 0:0:5]} c5+ {[%emt 0:0:46]} 60. Kxc5 {[%emt 0:0:52]} Re3 {[%emt 0:0:31]} 61. Kb4 {[%emt 0:2:46]} Rxe5 {[%emt 0:0:0]} 62. Bxc2 {[%emt 0:0:0]} Bd7 {[%emt 0:0:0]} 63. Bd3 {[%emt 0:0:0]} Re3 {[%emt 0:0:0]} 64. Rd1 {[%emt 0:0:0]} Kf6 {[%emt 0:0:0]} 65. Kc3 {[%emt 0:0:0]} Rf3 {[%emt 0:0:0]} 66. Rf1 {[%emt 0:0:0]} Kg5 {[%emt 0:0:0]} 1/2-1/2

[Event "56th Biel Festival MTO 2023"]
[White "Samant Aditya S"]
[Black "Toktomushev,Teimur"]
[Site "Biel"]
[Round "3.6"]
[Annotator "RC"]
[Result "1-0"]
[Date "2023.07.19"]
[WhiteElo "2510"]
[BlackElo "2206"]
[PlyCount "63"]
[TimeControl "60"]

1. e4 {[%emt 0:0:0]} c5 {[%emt 0:0:0]} 2. Nf3 {[%emt 0:0:0]} e6 {[%emt 0:0:0]} 3. d4 {[%emt 0:0:0]} cxd4 {[%emt 0:0:0]} 4. Nxd4 {[%emt 0:0:0]} a6 {[%emt 0:0:0]} 5. h3 {[%emt 0:0:0]} Nf6 {[%emt 0:0:16]} 6. Bd3 {[%emt 0:0:0]} Qc7 {[%emt 0:10:45]} 7. O-O {[%emt 0:0:0]} Bc5 {[%emt 0:2:36]} 8. Nb3 {[%emt 0:0:0]} Ba7 {[%emt 0:1:59]} 9. c4 {[%emt 0:2:3]} Nc6 {[%emt 0:6:21]} 10. Nc3 {[%emt 0:2:22]} Ne5 {[%emt 0:20:53]} 11. Qe2 {[%emt 0:17:31]} Ng6 {[%emt 0:14:42]} 12. Be3 {[%emt 0:17:51]} Bxe3 {[%emt 0:6:8]} 13. Qxe3 {[%emt 0:0:26]} d6 {[%emt 0:5:27]} 14. f4 {[%emt 0:8:14]} Bd7 {[%emt 0:9:11]} 15. Rae1 {[%emt 0:15:24]} O-O {[%emt 0:4:25]} 16. e5 {[%emt 0:4:56]} Ne8 {[%emt 0:1:13]} 17. Nd4 {[%emt 0:2:48]} dxe5 {[%emt 0:12:40]} 18. fxe5 {[%emt 0:0:4]} Qc5 {[%emt 0:1:41]} 19. a3 {[%emt 0:6:56]} a5 {[%emt 0:0:10]} 20. Kh1 {[%emt 0:5:3]} Rd8 {[%emt 0:0:45]} 21. Bxg6 {[%emt 0:4:30]} hxg6 {[%emt 0:0:6]} 22. Rf4 {[%emt 0:0:42]} Nc7 {[%emt 0:1:26]} 23. Qf2 {[%emt 0:3:8]} Bc6 {[%emt 0:0:43]} 24. Nxc6 {[%emt 0:2:6]} Qxc6 {[%emt 0:0:3]} 25. Ne4 {[%emt 0:0:52]} Rd3 {[%emt 0:0:57]} 26. Ng5 {[%emt 0:0:37]} f6 {[%emt 0:0:30]} 27. exf6 {[%emt 0:0:27]} gxf6 {[%emt 0:0:4]} 28. Rxf6 {[%emt 0:0:16]} Qe8 {[%emt 0:0:37]} 29. Nh7 {[%emt 0:3:28]} Rf7 {[%emt 0:0:38]} 30. Rf1 {[%emt 0:1:5]} Rfd7 {[%emt 0:0:42]} 31. Rf8+ {[%emt 0:0:13]} Kxh7 {[%emt 0:0:12]} 32. Qh4+ {[%emt 0:0:8]} 1-0